bitfinex-derivatives/quotes_BTCF0:USTF0_20210404
["timestamp","ask_amount","ask_price","bid_price","bid_amount"]
[1617579113806,1.99855659,58178.0,58177.0,0.27]
[1617579114303,2.44165955,58178.0,58177.0,0.27]
[1617579114807,1.99855659,58178.0,58177.0,0.27]
[1617579116708,2.4414181,58178.0,58177.0,0.27]
[1617579126424,5.6437181,58178.0,58177.0,0.27]
[1617579126626,7.1437181,58178.0,58173.0,0.27]
[1617579127024,7.1437181,58178.0,58177.0,0.27]
[1617579127224,7.1437181,58178.0,58174.0,0.01]
[1617579127225,6.6470176,58178.0,58174.0,0.01]
[1617579127425,12.6470176,58178.0,58174.0,0.01]
[1617579127626,12.6470176,58178.0,58152.0,0.50296975]
[1617579127627,12.6470176,58178.0,58177.0,0.26]
[1617579127825,6.6470176,58178.0,58173.0,0.27]
[1617579128225,0.10725655,58174.0,58168.0,0.27]
[1617579128425,2.71797637,58174.0,58162.0,0.26]
[1617579128826,0.66444266,58163.0,58161.0,0.36223682]
[1617579129026,1.66444266,58163.0,58162.0,0.27]
[1617579129227,1.82851266,58163.0,58162.0,0.27]
[1617579129427,1.16407,58163.0,58162.0,0.27]
[1617579129827,1.16407,58163.0,58162.0,0.42253038]
[1617579130227,1.27132655,58163.0,58162.0,0.621896]
[1617579130527,1.57334135,58163.0,58162.0,0.68252961]
[1617579131329,4.41134135,58163.0,58162.0,0.68252961]
[1617579132732,4.10932655,58163.0,58162.0,0.68252961]
[1617579133734,4.10932655,58163.0,58162.0,0.32063361]
[1617579134134,4.10932655,58163.0,58162.0,0.68220675]
[1617579134336,1.27132655,58163.0,58162.0,0.68220675]
[1617579134534,1.57298353,58163.0,58162.0,3.27293361]
[1617579134935,1.27132655,58163.0,58162.0,3.63447181]
[1617579135334,0.27132655,58163.0,58162.0,3.63447181]
[1617579135934,1.27132655,58163.0,58162.0,0.68217181]
[1617579138636,4.06712655,58163.0,58162.0,0.68217181]
[1617579139938,4.36876351,58163.0,58162.0,0.26]
[1617579140338,4.36876351,58163.0,58150.0,0.09094445]
[1617579140339,1.93491454,58163.0,58160.0,0.27]
[1617579140537,3.5304,58161.0,58160.0,0.27]
[1617579140739,3.83205043,58161.0,58158.0,0.3617922]
[1617579140938,3.83205043,58161.0,58160.0,0.27]
[1617579141339,3.83205043,58161.0,58159.0,0.36173074]
[1617579141540,3.5304,58161.0,58160.0,0.32063181]
[1617579141942,3.5304,58161.0,58160.0,0.68250712]
[1617579142143,3.83226486,58161.0,58160.0,0.68250712]
[1617579142342,3.83226486,58161.0,58160.0,0.32063181]
[1617579142541,4.83226486,58161.0,58160.0,0.32063181]
[1617579142742,4.83226486,58161.0,58160.0,0.68251667]
[1617579143142,5.194488,58161.0,58160.0,0.26]
[1617579143543,5.194488,58161.0,58158.0,0.01]
[1617579143942,5.194488,58161.0,58160.0,0.27]
[1617579144151,5.194488,58161.0,58156.0,0.26]
[1617579144347,4.89262314,58161.0,58159.0,0.01]
[1617579144543,4.83198899,58161.0,58157.0,0.36163313]
[1617579144845,4.83198899,58161.0,58157.0,0.63163313]
[1617579145244,4.83198899,58161.0,58157.0,0.36163313]
[1617579145444,4.83198899,58161.0,58158.0,0.27]
[1617579145644,3.83198899,58161.0,58158.0,0.27]
[1617579146045,1.0,58159.0,58158.0,0.27]
[1617579146445,1.10725655,58159.0,58157.0,0.36160884]
[1617579146845,1.10725655,58159.0,58157.0,0.63160884]
[1617579147047,1.10725655,58159.0,58156.0,0.36167015]
[1617579147245,1.0,58158.0,58157.0,0.36163815]
[1617579147647,0.10725655,58159.0,58157.0,0.62163815]
[1617579149649,1.0,58158.0,58157.0,0.62163815]
[1617579151757,3.5355,58158.0,58157.0,0.62163815]
[1617579152858,3.83747826,58158.0,58157.0,0.62163815]
[1617579153754,3.83747826,58158.0,58157.0,0.26]
[1617579154153,3.83747826,58158.0,58157.0,0.62179978]
[1617579154754,3.83747826,58158.0,58157.0,0.26]
[1617579159363,3.83747826,58158.0,58157.0,0.62150205]
[1617579160665,1.30197826,58158.0,58157.0,0.62150205]
[1617579160862,1.30197826,58158.0,58157.0,4.21970205]
[1617579161063,0.30197826,58158.0,58157.0,4.21970205]
[1617579162064,0.10725655,58159.0,58157.0,4.21970205]
[1617579162465,0.10725655,58159.0,58158.0,0.42174998]
[1617579162864,0.30190297,58162.0,58158.0,1.13306766]
[1617579163465,0.301902,58163.0,58161.0,0.36103759]
[1617579163865,0.301902,58163.0,58162.0,0.63091725]
[1617579164165,0.301902,58163.0,58162.0,0.42154788]
[1617579164564,0.40915855,58163.0,58162.0,0.69154788]
[1617579164766,0.77175446,58163.0,58162.0,0.63091725]
[1617579165165,0.97131118,58163.0,58162.0,0.69154815]
[1617579165567,0.77175446,58163.0,58162.0,0.69154815]
[1617579165968,0.97131075,58163.0,58162.0,0.69154815]
[1617579166168,1.97131075,58163.0,58162.0,0.69154815]
[1617579166367,0.97131075,58163.0,58162.0,0.69154815]
[1617579166970,0.40915855,58163.0,58162.0,0.69154815]
[1617579167270,1.40915855,58163.0,58162.0,0.69154815]
[1617579167469,1.77175337,58163.0,58162.0,0.69154815]
[1617579168572,0.77175337,58163.0,58162.0,0.69154815]
[1617579168770,0.77175337,58163.0,58162.0,0.84315815]
[1617579168974,1.40915855,58163.0,58162.0,0.84315815]
[1617579169472,0.40915855,58163.0,58162.0,0.84315815]
[1617579172079,0.40915855,58163.0,58162.0,0.69154815]
[1617579172479,0.40915855,58163.0,58162.0,4.25444815]
[1617579173480,0.40915855,58163.0,58162.0,4.40376815]
[1617579173883,0.40915855,58163.0,58162.0,4.8448707]
[1617579174282,0.10725655,58163.0,58162.0,4.8448707]
[1617579174481,0.30217597,58164.0,58162.0,5.0448707]
[1617579174682,0.30216716,58165.0,58163.0,0.10725655]
[1617579175084,0.10725655,58171.0,58164.0,1.13206249]
[1617579175085,0.30214367,58166.0,58164.0,1.13206249]
[1617579175485,0.44309707,58173.0,58164.0,1.13206249]
[1617579175486,0.36320722,58168.0,58165.0,1.36463981]
[1617579175883,0.36320722,58168.0,58166.0,0.27]
[1617579176084,0.36320077,58169.0,58167.0,3.45329025]
[1617579176485,0.36320077,58169.0,58168.0,0.27]
[1617579176683,0.36320077,58169.0,58168.0,0.47]
[1617579176885,0.36318278,58171.0,58168.0,1.92476107]
[1617579177385,0.30209527,58172.0,58170.0,0.80040858]
[1617579177788,0.30209766,58173.0,58171.0,0.27]
[1617579178086,0.30209766,58173.0,58171.0,1.07027668]
[1617579178487,0.36249598,58174.0,58172.0,0.4208609]
[1617579178686,0.36249598,58174.0,58173.0,0.10725655]
[1617579179090,0.36249616,58176.0,58173.0,0.73737645]
[1617579179489,1.87707949,58174.0,58173.0,0.6301199]
[1617579179888,1.87707949,58174.0,58173.0,0.33062258]
[1617579180291,0.87707949,58174.0,58173.0,0.33062258]
[1617579180690,0.98433604,58174.0,58173.0,0.79816189]
[1617579183295,0.40935423,58174.0,58173.0,0.79816189]
[1617579184994,0.771852,58174.0,58173.0,0.79816189]
[1617579185494,0.40935423,58174.0,58173.0,0.79816189]
[1617579185894,0.98487217,58174.0,58173.0,0.79816189]
[1617579187998,0.98487217,58174.0,58173.0,0.96455189]
[1617579188197,0.98487217,58174.0,58173.0,3.78425189]
[1617579188397,0.87761562,58174.0,58173.0,3.78425189]
[1617579188599,0.30198423,58176.0,58173.0,4.22314671]
[1617579188999,0.30198006,58179.0,58174.0,0.2]
[1617579189400,0.30196934,58180.0,58175.0,1.0677338]
[1617579189597,0.30196934,58180.0,58176.0,0.2]
[1617579189798,0.34431047,58194.0,58176.0,0.2]
[1617579189799,0.30196836,58182.0,58179.0,0.79740231]
[1617579189998,0.30196836,58182.0,58180.0,0.2]
[1617579190298,0.30196836,58182.0,58181.0,0.55881193]
[1617579190497,0.36234074,58186.0,58181.0,0.61942623]
[1617579190702,0.36234074,58186.0,58185.0,0.10725655]
[1617579190898,0.36234074,58186.0,58185.0,0.21088655]
[1617579191097,0.36234074,58186.0,58185.0,0.48088655]
[1617579192002,0.30155515,58186.0,58185.0,0.48088655]
[1617579193004,0.30142745,58187.0,58185.0,0.48088655]
[1617579193500,0.36169285,58190.0,58185.0,0.48088655]
[1617579193701,0.30142645,58187.0,58185.0,0.48088655]
[1617579194101,0.36169285,58190.0,58185.0,0.48088655]
[1617579194314,0.30142751,58187.0,58185.0,0.48088655]
[1617579194714,0.40868521,58186.0,58185.0,0.48088655]
[1617579195901,0.40868521,58186.0,58185.0,3.63818655]
[1617579196502,0.77038526,58186.0,58185.0,3.63818655]
[1617579196901,0.40868521,58186.0,58185.0,3.63818655]
[1617579205614,0.30142866,58186.0,58185.0,3.63818655]
[1617579205814,0.30142866,58186.0,58185.0,3.83818655]
[1617579206213,0.50219865,58198.0,58185.0,4.19565554]
[1617579206214,0.30138411,58191.0,58185.0,4.19565554]
[1617579206413,0.30138411,58191.0,58186.0,0.0516]
[1617579206614,0.36162667,58195.0,58190.0,3.2425]
[1617579206814,0.3013723,58192.0,58191.0,0.2]
[1617579207013,0.3013723,58192.0,58191.0,0.21]
[1617579207417,0.34367935,58204.0,58191.0,0.2706029]
[1617579207418,0.30136356,58196.0,58191.0,0.2706029]
[1617579207815,0.44195303,58204.0,58191.0,0.2706029]
[1617579207816,0.30134182,58197.0,58191.0,0.62770932]
[1617579208216,0.30133404,58198.0,58191.0,0.62770932]
[1617579208415,0.30133404,58198.0,58197.0,2.7326]
[1617579208616,0.30133404,58198.0,58197.0,2.84202]
[1617579208816,0.30133404,58198.0,58197.0,3.21927655]
[1617579210919,0.40859059,58198.0,58197.0,3.21927655]
[1617579211820,1.40859059,58198.0,58197.0,3.10985655]
[1617579212020,1.77018185,58198.0,58197.0,3.10985655]
[1617579217325,1.77018185,58198.0,58197.0,0.37725655]
[1617579217528,4.67268185,58198.0,58197.0,0.37725655]
[1617579218328,5.11481201,58198.0,58197.0,0.37725655]
[1617579221131,2.21231201,58198.0,58197.0,0.37725655]
[1617579221532,2.21231201,58198.0,58197.0,3.19055655]
[1617579222332,1.21231201,58198.0,58197.0,3.19055655]
[1617579222636,2.21231201,58198.0,58197.0,3.19055655]
[1617579224838,2.71545443,58198.0,58197.0,3.19055655]
[1617579227539,1.71545443,58198.0,58197.0,0.27]
[1617579227741,2.71545443,58198.0,58197.0,0.27]
[1617579227940,5.37245443,58198.0,58188.0,0.27]
[1617579228139,6.87245443,58198.0,58188.0,0.27]
[1617579228341,2.60725655,58198.0,58197.0,0.27]
[1617579228540,2.60725655,58198.0,58187.0,0.26]
[1617579228742,4.71042081,58198.0,58189.0,0.01]
[1617579228940,3.60395655,58190.0,58185.0,0.26]
[1617579229142,5.2149206,58190.0,58188.0,0.25]
[1617579229343,5.2149206,58190.0,58188.0,0.3012]
[1617579229543,2.16299143,58189.0,58188.0,0.0512]
[1617579229741,2.16299143,58189.0,58188.0,3.1921]
[1617579229944,2.31747427,58189.0,58188.0,3.2021]
[1617579230942,2.31747427,58189.0,58188.0,3.30935655]
[1617579233146,1.0,58189.0,58188.0,3.30935655]
[1617579233546,2.10742519,58189.0,58188.0,0.11725655]
[1617579233947,5.05292519,58189.0,58188.0,0.11725655]
[1617579234148,5.05292519,58189.0,58188.0,0.01]
[1617579234547,4.39501264,58189.0,58184.0,0.27]
[1617579234949,5.39501264,58189.0,58183.0,0.01]
[1617579235351,0.55202486,58188.0,58185.0,0.26]
[1617579235547,0.70922486,58188.0,58182.0,0.01]
[1617579235749,2.10764706,58186.0,58184.0,0.27]
[1617579235949,2.10764706,58186.0,58183.0,0.02]
[1617579236150,1.31753244,58185.0,58183.0,0.02]
[1617579236348,1.0,58184.0,58180.0,0.35857173]
[1617579236552,1.66459522,58184.0,58183.0,0.3584265]
[1617579236950,1.8745156,58184.0,58183.0,0.73568305]
[1617579237350,1.8745156,58184.0,58183.0,0.79629446]
[1617579238952,1.98177215,58184.0,58183.0,0.79629446]
[1617579239153,1.98177215,58184.0,58183.0,0.37725655]
[1617579239651,1.98177215,58184.0,58183.0,0.27]
[1617579240053,1.98177215,58184.0,58182.0,0.27]
[1617579240253,2.11975215,58184.0,58182.0,0.27]
[1617579240455,1.11975215,58184.0,58183.0,0.27]
[1617579240653,0.87465597,58183.0,58182.0,0.27]
[1617579240853,1.87465597,58183.0,58182.0,0.27]
[1617579241054,0.2099549,58183.0,58181.0,0.27]
[1617579241357,0.2099549,58183.0,58182.0,0.26]
[1617579241559,1.65995577,58183.0,58182.0,0.26]
[1617579241757,1.65995577,58183.0,58181.0,0.27]
[1617579241958,1.31776327,58183.0,58182.0,0.26]
[1617579242259,1.31776327,58183.0,58178.0,3.23318173]
[1617579242460,1.31776327,58183.0,58180.0,0.27]
[1617579242659,3.6893,58181.0,58180.0,0.27]
[1617579242860,3.6893,58181.0,58179.0,0.35876818]
[1617579243064,4.6893,58181.0,58179.0,0.35876818]
[1617579243261,4.6893,58181.0,58159.0,0.10725655]
[1617579243262,4.56400684,58181.0,58180.0,0.27]
[1617579243460,3.6893,58181.0,58180.0,0.27]
[1617579243662,4.79722278,58181.0,58175.0,0.27]
[1617579244063,4.79722278,58181.0,58179.0,0.27]
[1617579244263,0.55225334,58180.0,58176.0,0.27]
[1617579244463,2.66021361,58180.0,58176.0,0.27]
[1617579244662,2.66021361,58180.0,58175.0,0.01]
[1617579244864,2.66021361,58180.0,58177.0,0.26]
[1617579245063,0.55041291,58178.0,58177.0,0.26]
[1617579245263,0.55041291,58178.0,58175.0,0.27]
[1617579245464,0.77202941,58178.0,58177.0,0.01]
[1617579245864,0.98203016,58178.0,58176.0,0.27]
[1617579246063,0.98203016,58178.0,58175.0,0.35934969]
[1617579246263,0.98203016,58178.0,58177.0,0.01]
[1617579246464,0.98203016,58178.0,58176.0,0.62937501]
[1617579246865,1.98203016,58178.0,58176.0,0.35937501]
[1617579247065,1.98203016,58178.0,58177.0,0.27]
[1617579247265,1.10725655,58178.0,58177.0,0.27]
[1617579248167,1.7720382,58178.0,58176.0,0.01]
[1617579248366,1.7720382,58178.0,58177.0,0.26]
[1617579248567,1.7720382,58178.0,58175.0,0.35957785]
[1617579248769,1.10853433,58177.0,58176.0,0.27]
[1617579249170,0.66514075,58177.0,58176.0,0.27]
[1617579249368,1.66514075,58177.0,58176.0,0.27]
[1617579249568,1.66514075,58177.0,58174.0,0.62977537]
[1617579249870,1.66514075,58177.0,58176.0,0.6295211]
[1617579250068,0.66514075,58177.0,58176.0,0.6295211]
[1617579250269,0.66514075,58177.0,58176.0,0.3595211]
[1617579250471,1.0,58177.0,58176.0,0.6195211]
[1617579250869,1.6646509,58177.0,58176.0,0.6195211]
[1617579251069,1.6646509,58177.0,58176.0,0.6704211]
[1617579251272,1.3021232,58177.0,58176.0,0.6195211]
[1617579252571,4.4669232,58177.0,58176.0,0.6195211]
[1617579253072,4.82931782,58177.0,58176.0,0.26]
[1617579253472,4.82931782,58177.0,58175.0,0.02]
[1617579253672,4.97032782,58177.0,58175.0,0.02]
[1617579253872,4.30581,58177.0,58176.0,0.26]
[1617579254072,4.30581,58177.0,58174.0,0.01]
[1617579254273,4.97026313,58177.0,58174.0,0.36956834]
[1617579254473,4.97026313,58177.0,58176.0,0.27]
[1617579254673,4.97026313,58177.0,58175.0,0.01]
[1617579254874,4.97026313,58177.0,58175.0,0.36945746]
[1617579255275,0.66444814,58176.0,58174.0,0.3595694]
[1617579255673,0.66444814,58176.0,58173.0,0.35958162]
[1617579255876,0.66444814,58176.0,58175.0,0.27]
[1617579256075,4.30581,58177.0,58175.0,0.27]
[1617579256276,4.30581,58177.0,58174.0,0.36959488]
[1617579256473,4.30581,58177.0,58175.0,0.26]
[1617579257077,1.0,58176.0,58174.0,0.01]
[1617579257276,1.66445115,58176.0,58174.0,0.01]
[1617579257476,1.66445115,58176.0,58173.0,0.3596562]
[1617579257677,1.66445115,58176.0,58175.0,0.62958487]
[1617579257678,1.36241875,58176.0,58175.0,0.62958487]
[1617579258076,1.36241875,58176.0,58175.0,0.35958487]
[1617579258277,1.66444924,58176.0,58175.0,0.26]
[1617579258677,1.0,58176.0,58175.0,0.26]
[1617579258976,1.66445399,58176.0,58175.0,0.26]
[1617579259779,1.66445399,58176.0,58175.0,0.6196118]
[1617579260179,1.66445399,58176.0,58175.0,0.3596118]
[1617579260379,1.66445399,58176.0,58171.0,0.70952554]
[1617579260380,1.66445399,58176.0,58174.0,0.35971289]
[1617579260579,1.66445399,58176.0,58175.0,0.27]
[1617579260781,1.66445399,58176.0,58175.0,0.62969378]
[1617579260982,0.66445399,58176.0,58175.0,0.62969378]
[1617579261181,1.66445399,58176.0,58175.0,3.76835033]
[1617579261581,1.30203369,58176.0,58175.0,4.03835033]
[1617579262083,1.0,58176.0,58175.0,4.03835033]
[1617579262483,1.30202858,58176.0,58175.0,4.03835033]
[1617579262884,1.0,58176.0,58175.0,4.03835033]
[1617579264497,1.0,58176.0,58175.0,3.93109378]
[1617579264705,1.30191774,58176.0,58175.0,0.62969378]
[1617579264892,4.81961774,58176.0,58175.0,0.62969378]
[1617579265094,5.18190947,58176.0,58175.0,0.27]
[1617579265490,5.18190947,58176.0,58174.0,0.01]
[1617579265688,5.30195947,58176.0,58174.0,0.01]
[1617579265890,5.00004173,58176.0,58175.0,0.27]
[1617579266088,4.63775,58176.0,58173.0,0.62936742]
[1617579266489,5.30195713,58176.0,58174.0,0.26]
[1617579266891,0.57495339,58175.0,58172.0,0.35938891]
[1617579267089,1.57495339,58175.0,58174.0,0.27]
[1617579267289,1.87687873,58175.0,58173.0,0.01]
[1617579267904,3.8326,58174.0,58173.0,0.01]
[1617579268099,4.70950596,58174.0,58173.0,0.01]
[1617579268892,4.90950596,58174.0,58173.0,0.01]
[1617579269102,4.90950596,58174.0,58171.0,0.27]
[1617579269304,0.10725655,58172.0,58171.0,0.27]
[1617579269491,0.30725655,58172.0,58169.0,0.85376827]
[1617579269693,0.30725655,58172.0,58171.0,0.27]
[1617579269694,1.18276564,58172.0,58171.0,0.27]
[1617579270094,2.18276564,58172.0,58170.0,0.27]
[1617579270293,2.18276564,58172.0,58171.0,0.27]
[1617579270496,1.30725655,58172.0,58171.0,0.27]
[1617579270693,1.30725655,58172.0,58170.0,0.27]
[1617579270894,1.30725655,58172.0,58169.0,0.494]
[1617579271094,1.30725655,58172.0,58171.0,0.27]
[1617579271296,1.30725655,58172.0,58170.0,0.27]
[1617579271694,1.66941854,58172.0,58170.0,0.27]
[1617579272096,2.07514872,58171.0,58170.0,0.27]
[1617579272795,1.57332966,58171.0,58170.0,0.27]
[1617579273097,1.87513973,58171.0,58170.0,0.27]
[1617579273696,1.4111669,58171.0,58170.0,0.27]
[1617579273997,2.07592456,58171.0,58170.0,0.27]
[1617579274396,2.51906348,58171.0,58170.0,0.27]
[1617579274796,5.44136348,58171.0,58170.0,0.27]
[1617579275299,6.94136348,58171.0,58170.0,0.27]
[1617579275499,7.28443904,58171.0,58170.0,0.27]
[1617579275698,7.28443904,58171.0,58166.0,0.27]
[1617579276098,7.28443904,58171.0,58165.0,0.27]
[1617579276301,1.1080187,58167.0,58164.0,0.27]
[1617579276502,1.10801933,58166.0,58164.0,0.27]
[1617579276698,1.10801933,58166.0,58161.0,0.36057983]
[1617579276899,1.10801933,58166.0,58162.0,0.27]
[1617579277101,0.21146891,58168.0,58165.0,0.27]
[1617579277301,0.10725655,58166.0,58161.0,0.36057983]
[1617579277701,1.10725655,58166.0,58163.0,0.27]
[1617579277901,0.44319049,58164.0,58162.0,0.27]
[1617579278101,0.60481049,58164.0,58160.0,0.36062352]
[1617579278300,0.60481049,58164.0,58161.0,0.01]
[1617579278503,1.26965198,58164.0,58163.0,0.26]
[1617579278701,1.26965198,58164.0,58159.0,0.3607802]
[1617579278904,0.66484326,58162.0,58159.0,0.3607802]
[1617579279302,0.36263262,58162.0,58160.0,0.01]
[1617579279502,3.4746,58161.0,58160.0,0.01]
[1617579279903,4.35089341,58161.0,58160.0,0.07063902]
[1617579280305,4.35089341,58161.0,58160.0,0.43133489]
[1617579280904,4.4746,58161.0,58160.0,0.43133489]
[1617579281305,5.24668089,58161.0,58160.0,0.53859144]
[1617579281608,5.24668089,58161.0,58160.0,0.43133489]
[1617579281808,4.58185655,58161.0,58160.0,0.43133489]
[1617579282009,4.88405286,58161.0,58160.0,0.43133489]
[1617579282208,5.01884286,58161.0,58160.0,0.43133489]
[1617579283011,5.38125412,58161.0,58160.0,0.43133489]
[1617579283410,5.01884286,58161.0,58160.0,0.43133489]
[1617579285112,5.3817198,58161.0,58160.0,0.43133489]
[1617579285511,4.71664655,58161.0,58160.0,0.43133489]
[1617579285911,5.38194184,58161.0,58160.0,0.43133489]
[1617579286313,5.07952303,58161.0,58160.0,0.43133489]
[1617579286714,5.38193523,58161.0,58160.0,0.43133489]
[1617579287112,5.38193523,58161.0,58160.0,0.87285918]
[1617579287312,5.38193523,58161.0,58160.0,0.98011573]
[1617579287515,5.38193523,58161.0,58160.0,0.53859144]
[1617579287711,5.38193523,58161.0,58160.0,0.43133489]
[1617579287913,1.90733523,58161.0,58160.0,0.87282629]
[1617579288117,0.77254523,58161.0,58160.0,0.87282629]
[1617579288315,0.77254523,58161.0,58160.0,4.02672629]
[1617579288512,0.77254523,58161.0,58160.0,4.18824629]
[1617579288914,1.40966875,58161.0,58160.0,4.18824629]
[1617579289113,1.40966875,58161.0,58160.0,1.03434629]
[1617579289318,1.40966875,58161.0,58160.0,1.23255563]
[1617579289514,1.40966875,58161.0,58160.0,1.07103563]
[1617579289914,4.74706875,58161.0,58160.0,0.98008284]
[1617579291719,4.74706875,58161.0,58160.0,0.87282629]
[1617579292122,4.44465655,58161.0,58160.0,0.87282629]
[1617579292329,4.74705382,58161.0,58160.0,0.87282629]
[1617579292922,4.44465655,58161.0,58160.0,0.87282629]
[1617579293522,4.10990287,58161.0,58160.0,1.02912629]
[1617579293922,0.30239385,58161.0,58160.0,1.02912629]
[1617579294122,0.30239385,58161.0,58160.0,4.06882629]
[1617579294323,1.0,58165.0,58160.0,4.06882629]
[1617579294723,0.3024215,58164.0,58161.0,0.1515766]
[1617579295222,1.0,58164.0,58163.0,4.49850175]
[1617579295422,0.30241572,58165.0,58163.0,4.6057583]
[1617579295623,0.30241572,58165.0,58163.0,5.02733045]
[1617579296025,0.30249288,58167.0,58164.0,1.45369667]
[1617579296423,0.30247932,58169.0,58166.0,1.30173426]
[1617579296622,2.96637932,58169.0,58166.0,1.30173426]
[1617579296824,2.6639,58169.0,58168.0,1.30115777]
[1617579297224,2.6639,58169.0,58168.0,1.63177944]
[1617579298023,0.30246654,58173.0,58168.0,1.63177944]
[1617579298627,0.30246654,58173.0,58172.0,0.80031596]
[1617579298828,0.30246654,58173.0,58172.0,0.91152596]
[1617579299028,0.30246654,58173.0,58172.0,1.18152596]
[1617579299229,0.30246654,58173.0,58172.0,1.33307739]
[1617579299427,0.30246654,58173.0,58172.0,1.44033394]
[1617579302831,0.66541028,58173.0,58172.0,1.44033394]
[1617579305334,1.66541028,58173.0,58172.0,1.44033394]
[1617579305535,1.66541028,58173.0,58172.0,1.22186739]
[1617579305734,4.42921028,58173.0,58172.0,1.22186739]
[1617579305936,4.64371565,58173.0,58172.0,0.69076275]
[1617579306335,4.64371565,58173.0,58172.0,0.27]
[1617579306336,5.43273075,58173.0,58172.0,0.27]
[1617579306735,5.43273075,58173.0,58171.0,0.27]
[1617579306936,5.43273075,58173.0,58171.0,0.63090885]
[1617579307137,5.43273075,58173.0,58172.0,0.27]
[1617579307336,5.43273075,58173.0,58171.0,0.36090885]
[1617579307537,0.0466275,58172.0,58171.0,0.36090885]
[1617579307735,1.50838196,58172.0,58167.0,0.44108482]
[1617579307935,1.50838196,58172.0,58171.0,0.27]
[1617579308136,0.39899006,58172.0,58171.0,0.6308986]
[1617579308335,0.39899006,58172.0,58171.0,0.3608986]
[1617579308536,2.50837037,58172.0,58171.0,0.6308986]
[1617579308938,1.50837037,58172.0,58171.0,0.6308986]
[1617579309139,0.71227585,58172.0,58171.0,0.6308986]
[1617579309539,0.71227585,58172.0,58171.0,0.73815515]
[1617579309938,1.71227585,58172.0,58171.0,1.17842178]
[1617579310338,1.71227585,58172.0,58171.0,1.07116523]
[1617579310539,2.15604298,58172.0,58171.0,0.6308986]
[1617579310940,2.15604298,58172.0,58171.0,0.27]
[1617579311339,2.15604298,58172.0,58169.0,0.36096206]
[1617579311539,2.26028298,58172.0,58169.0,0.36096206]
[1617579311741,1.1508675,58172.0,58171.0,0.27]
[1617579312140,1.1508675,58172.0,58167.0,0.36112187]
[1617579312341,2.26042212,58172.0,58171.0,0.01]
[1617579312744,1.1508675,58172.0,58169.0,0.37102498]
[1617579312942,1.1508675,58172.0,58171.0,0.27]
[1617579313343,1.1508675,58172.0,58170.0,0.01]
[1617579313542,1.1508675,58172.0,58171.0,0.26]
[1617579313743,2.26038995,58172.0,58171.0,0.26]
[1617579313942,2.26038995,58172.0,58169.0,0.36102498]
[1617579314143,2.26038995,58172.0,58171.0,0.27]
[1617579314343,2.26038995,58172.0,58170.0,0.63105152]
[1617579314543,2.26038995,58172.0,58171.0,0.36097222]
[1617579314743,2.26038995,58172.0,58171.0,0.63097222]
[1617579314943,0.1508675,58172.0,58171.0,0.63097222]
[1617579315143,1.1508675,58172.0,58171.0,0.63097222]
[1617579315544,2.260395,58172.0,58171.0,0.27]
[1617579315944,2.260395,58172.0,58170.0,0.01]
[1617579316344,2.260395,58172.0,58171.0,0.26]
[1617579316546,1.156155,58172.0,58168.0,0.36130757]
[1617579316745,1.10951522,58171.0,58169.0,0.37126909]
[1617579317145,1.49039185,58172.0,58170.0,0.36097988]
[1617579317345,1.49039185,58172.0,58170.0,0.63097988]
[1617579317547,1.49039185,58172.0,58171.0,0.4682502]
[1617579317947,1.49039185,58172.0,58171.0,0.7382502]
[1617579318146,1.71243482,58172.0,58171.0,0.63099365]
[1617579318546,2.15628459,58172.0,58171.0,0.63099365]
[1617579321148,2.15628459,58172.0,58171.0,1.21444552]
[1617579321448,2.15628459,58172.0,58171.0,1.32170207]
[1617579322751,2.15628459,58172.0,58171.0,0.96070842]
[1617579322954,2.15628459,58172.0,58171.0,1.32214145]
[1617579323150,1.0466275,58172.0,58171.0,1.32214145]
[1617579323354,2.15694139,58172.0,58171.0,1.32214145]
[1617579324053,2.15694139,58172.0,58171.0,3.90344145]
[1617579324653,2.15694139,58172.0,58171.0,3.99438052]
[1617579325559,1.15694139,58172.0,58171.0,3.99438052]
[1617579326359,0.71283602,58172.0,58171.0,3.99438052]
[1617579326759,0.0466275,58172.0,58171.0,4.49591941]
[1617579327160,0.9344634,58172.0,58171.0,4.49591941]
[1617579327864,0.93446133,58172.0,58171.0,4.49591941]
[1617579328164,0.26830283,58172.0,58171.0,4.49591941]
[1617579328365,0.9344584,58172.0,58171.0,4.49591941]
[1617579328863,0.9344584,58172.0,58171.0,3.99438052]
[1617579328864,0.34943466,58172.0,58171.0,3.99438052]
[1617579330065,0.0466275,58172.0,58171.0,3.99438052]
[1617579330267,0.3491295,58172.0,58171.0,3.99438052]
[1617579331468,0.71203085,58172.0,58171.0,3.99438052]
[1617579331867,0.71203085,58172.0,58171.0,1.41308052]
[1617579332069,3.2846675,58172.0,58171.0,1.16425397]
[1617579332268,4.2846675,58172.0,58171.0,1.16425397]
[1617579332470,5.18317011,58172.0,58171.0,1.0733149]
[1617579332669,4.51781609,58172.0,58171.0,1.0733149]
[1617579332870,5.62681698,58172.0,58171.0,0.63143303]
[1617579333274,5.62681698,58172.0,58171.0,0.27]
[1617579333773,5.62681698,58172.0,58170.0,0.37187151]
[1617579333972,2.50441698,58172.0,58171.0,0.26]
[1617579334379,1.0466275,58172.0,58171.0,0.36166787]
[1617579334574,0.0466275,58172.0,58171.0,0.63166787]
[1617579334777,0.34907333,58172.0,58171.0,0.63166787]
[1617579335176,0.34907333,58172.0,58171.0,1.07354865]
[1617579335576,0.30244583,58172.0,58171.0,1.1808052]
[1617579337578,0.40970238,58172.0,58171.0,1.1808052]
[1617579337781,0.40970238,58172.0,58171.0,0.73892442]
[1617579338890,0.40970238,58172.0,58171.0,0.63166787]
[1617579339113,1.40970238,58172.0,58171.0,0.63166787]
[1617579339298,1.8532532,58172.0,58171.0,0.63166787]
[1617579341389,1.40970238,58172.0,58171.0,0.63166787]
[1617579341589,1.0,58172.0,58171.0,0.27]
[1617579341790,1.0,58176.0,58171.0,0.27]
[1617579341989,1.0,58176.0,58170.0,0.27]
[1617579342190,0.30251994,58172.0,58171.0,0.44285257]
[1617579342390,0.30251994,58172.0,58171.0,3.45665257]
[1617579342590,0.30251994,58172.0,58171.0,3.72665257]
[1617579342990,0.30251994,58172.0,58171.0,0.80378501]
[1617579343390,0.30251994,58172.0,58171.0,0.71285257]
[1617579343592,0.40977649,58172.0,58171.0,0.71285257]
[1617579344592,0.40977649,58172.0,58171.0,0.80378624]
[1617579347998,0.85360002,58172.0,58171.0,3.35145257]
[1617579348198,1.85360002,58172.0,58171.0,3.35145257]
[1617579348600,1.40977649,58172.0,58171.0,3.44238884]